fUSD/lending_fUSD_20250617
["ID","MTS","AMOUNT","RATE_DAILY","PERIOD"]
[366332716,1750193453852,-490.0,0.00016438,2]
[366332717,1750193453862,-490.0,0.00016438,2]
[366332718,1750193453871,-210.438369,0.00016438,2]
[366332719,1750193453882,-210.438369,0.00016438,2]
[366332720,1750193453891,-210.438369,0.00016438,2]
[366332721,1750193453901,-490.0,0.00016438,2]
[366332722,1750193453911,-210.438369,0.00016438,2]
[366332723,1750193453920,-490.0,0.00016438,2]
[366332724,1750193453930,-210.438369,0.00016438,2]
[366332725,1750193453939,-1890.11,0.00016438,2]
[366332726,1750193453949,-210.438369,0.00016438,2]
[366332727,1750193453959,-210.438369,0.00016438,2]
[366332728,1750193453970,-210.438369,0.00016438,2]
[366332729,1750193453980,-5000.0,0.00016438,2]
[366332730,1750193453989,-500.0,0.00016438,2]
[366332731,1750193453999,-500.0,0.00016438,2]
[366332732,1750193454009,-210.438369,0.00016438,2]
[366332733,1750193454020,-490.0,0.00016438,2]
[366332734,1750193454030,-210.438369,0.00016438,2]
[366332735,1750193454039,-500.0,0.00016438,2]
[366332736,1750193454050,-490.0,0.00016438,2]
[366332737,1750193454060,-467.22375916,0.00016438,2]
[366332738,1750193454070,-210.438369,0.00016438,2]
[366332739,1750193454081,-490.0,0.00016438,2]
[366332740,1750193454092,-210.438369,0.00016438,2]
[366332741,1750193454102,-490.0,0.00016438,2]
[366332742,1750193454112,-210.438369,0.00016438,2]
[366332743,1750193454122,-210.438369,0.00016438,2]
[366332744,1750193454132,-645.03,0.00016438,2]
[366332745,1750193454148,-210.438369,0.00016438,2]
[366332746,1750193454158,-1090.11,0.00016438,2]
[366332747,1750193454168,-210.438369,0.00016438,2]
[366332748,1750193454178,-1058.84,0.00016438,2]
[366332749,1750193454189,-210.438369,0.00016438,2]
[366332750,1750193454199,-210.438369,0.00016438,2]
[366332751,1750193454208,-210.438362,0.00016438,2]
[366332752,1750193454218,-490.0,0.00016438,2]
[366332753,1750193454229,-490.0,0.00016438,2]
[366332754,1750193454238,-151.0,0.00016438,2]
[366332755,1750193454248,-151.0,0.00016438,2]
[366332756,1750193454258,-213.914733,0.00016438,2]
[366332757,1750193454269,-653.84,0.00016438,2]
[366332758,1750193454278,-490.0,0.00016438,2]
[366332759,1750193454288,-490.0,0.00016438,2]
[366332760,1750193454298,-490.0,0.00016438,2]
[366332761,1750193454309,-490.0,0.00016438,2]
[366332762,1750193454320,-490.0,0.00016438,2]
[366332763,1750193454330,-659.46,0.00016438,2]
[366332764,1750193454340,-490.0,0.00016438,2]
[366332765,1750193454350,-199.79262427,0.00016438,2]
[366332766,1750193454361,-727.86,0.00016438,2]
[366332767,1750193454372,-425.49513782,0.00016438,2]
[366332768,1750193454382,-490.0,0.00016438,2]
[366332769,1750193454392,-490.0,0.00016438,2]
[366332770,1750193454401,-503.09,0.00016438,2]
[366332771,1750193454411,-490.0,0.00016438,2]
[366332772,1750193454422,-490.0,0.00016438,2]
[366332773,1750193454432,-961.91,0.00016438,2]
[366332774,1750193454442,-555.73448144,0.00016438,2]
[366332775,1750193454452,-490.0,0.00016438,2]
[366332776,1750193454461,-504.51,0.00016438,2]
[366332777,1750193454471,-490.0,0.00016438,2]
[366332778,1750193454481,-490.0,0.00016438,2]
[366332779,1750193454490,-641.17,0.00016438,2]
[366332780,1750193454500,-490.0,0.00016438,2]
[366332781,1750193454509,-490.0,0.00016438,2]
[366332782,1750193454519,-490.0,0.00016438,2]
[366332783,1750193454529,-490.0,0.00016438,2]
[366332784,1750193454539,-151.0,0.00016438,2]
[366332785,1750193454549,-151.0,0.00016438,2]
[366332786,1750193454559,-490.0,0.00016438,2]
[366332787,1750193454568,-151.0,0.00016438,2]
[366332788,1750193454578,-190.240674,0.00016438,2]
[366332789,1750193454588,-1414.7,0.00016438,2]
[366332790,1750193454597,-863.99,0.00016438,2]
[366332791,1750193454606,-490.0,0.00016438,2]
[366332792,1750193454616,-490.0,0.00016438,2]
[366332793,1750193454625,-1517.75,0.00016438,2]
[366332794,1750193454635,-490.0,0.00016438,2]
[366332795,1750193454645,-490.0,0.00016438,2]
[366332796,1750193454657,-490.0,0.00016438,2]
[366332797,1750193454667,-716.59,0.00016438,2]
[366332798,1750193454676,-490.0,0.00016438,2]
[366332799,1750193454686,-490.0,0.00016438,2]
[366332800,1750193454696,-653.79,0.00016438,2]
[366332801,1750193454705,-490.0,0.00016438,2]
[366332802,1750193454715,-490.0,0.00016438,2]
[366332803,1750193454724,-490.0,0.00016438,2]
[366332804,1750193454734,-1077.52,0.00016438,2]
[366332805,1750193454745,-642.22,0.00016438,2]
[366332806,1750193454754,-490.0,0.00016438,2]
[366332807,1750193454763,-618.84,0.00016438,2]
[366332808,1750193454773,-490.0,0.00016438,2]
[366332809,1750193454782,-490.0,0.00016438,2]
[366332810,1750193454792,-490.0,0.00016438,2]
[366332811,1750193454802,-490.0,0.00016438,2]
[366332812,1750193454811,-917.23,0.00016438,2]
[366332813,1750193454820,-460.0,0.00016438,2]
[366332814,1750193454830,-490.0,0.00016438,2]
[366332815,1750193454839,-490.0,0.00016438,2]
[366332816,1750193454848,-1930.73,0.00016438,2]
[366332817,1750193454858,-1172.04,0.00016438,2]
[366332818,1750193454867,-490.0,0.00016438,2]
[366332819,1750193454880,-490.0,0.00016438,2]
[366332820,1750193454896,-490.0,0.00016438,2]
[366332821,1750193454910,-490.0,0.00016438,2]
[366332822,1750193454923,-685.43,0.00016438,2]
[366332823,1750193454937,-423.26696551,0.00016438,2]
[366332824,1750193454951,-1731.76,0.00016438,2]
[366332825,1750193454967,-490.0,0.00016438,2]
[366332826,1750193454981,-490.0,0.00016438,2]
[366332827,1750193454994,-490.0,0.00016438,2]
[366332828,1750193455006,-2534.62,0.00016438,2]
[366332829,1750193455020,-490.0,0.00016438,2]
[366332830,1750193455035,-490.0,0.00016438,2]
[366332831,1750193455049,-490.0,0.00016438,2]
[366332832,1750193455064,-490.0,0.00016438,2]
[366332833,1750193455078,-490.0,0.00016438,2]
[366332834,1750193455093,-827.56,0.00016438,2]
[366332835,1750193455107,-460.0,0.00016438,2]
[366332836,1750193455121,-490.0,0.00016438,2]
[366332837,1750193455135,-490.0,0.00016438,2]
[366332838,1750193455151,-630.77935294,0.00016438,2]
[366332839,1750193455167,-490.0,0.00016438,2]
[366332840,1750193455180,-1151.95,0.00016438,2]
[366332841,1750193455196,-1566.44,0.00016438,2]
[366332842,1750193455210,-490.0,0.00016438,2]
[366332843,1750193455224,-519.03,0.00016438,2]
[366332844,1750193455241,-490.0,0.00016438,2]
[366332845,1750193455256,-421.80937391,0.00016438,2]
[366332846,1750193455267,-490.0,0.00016438,2]
[366332847,1750193455279,-1048.05,0.00016438,2]
[366332848,1750193455294,-490.0,0.00016438,2]
[366332849,1750193455307,-490.0,0.00016438,2]
[366332850,1750193455319,-490.0,0.00016438,2]
[366332851,1750193455330,-490.66940247,0.00016438,2]
[366332852,1750193455342,-582.92850732,0.00016438,2]
[366332853,1750193455356,-490.0,0.00016438,2]
[366332854,1750193455368,-490.0,0.00016438,2]
[366332855,1750193455381,-421.7707219,0.00016438,2]
[366332856,1750193455394,-617.21,0.00016438,2]
[366332857,1750193455407,-490.0,0.00016438,2]
[366332858,1750193455427,-1337.56,0.00016438,2]
[366332859,1750193455440,-490.0,0.00016438,2]
[366332860,1750193455452,-807.01,0.00016438,2]
[366332861,1750193455466,-490.0,0.00016438,2]
[366332862,1750193455479,-490.0,0.00016438,2]
[366332863,1750193455492,-821.37,0.00016438,2]
[366332864,1750193455505,-490.0,0.00016438,2]
[366332865,1750193455518,-490.0,0.00016438,2]
[366332866,1750193455532,-490.0,0.00016438,2]
[366332867,1750193455545,-866.88,0.00016438,2]
[366332868,1750193455558,-308.826329,0.00016438,2]
[366332869,1750193455572,-308.826329,0.00016438,2]
[366332870,1750193455585,-460.0,0.00016438,2]
[366332871,1750193455598,-490.0,0.00016438,2]
[366332872,1750193455611,-308.826329,0.00016438,2]
[366332873,1750193455623,-308.826329,0.00016438,2]
[366332874,1750193455637,-308.826329,0.00016438,2]
[366332875,1750193455650,-308.826329,0.00016438,2]
[366332876,1750193455664,-1690.86,0.00016438,2]
[366332877,1750193455676,-490.0,0.00016438,2]
[366332878,1750193455689,-460.0,0.00016438,2]
[366332879,1750193455702,-308.826329,0.00016438,2]
[366332880,1750193455714,-490.0,0.00016438,2]
[366332881,1750193455727,-308.826329,0.00016438,2]
[366332882,1750193455740,-308.826329,0.00016438,2]
[366332883,1750193455753,-308.826329,0.00016438,2]
[366332884,1750193455766,-675.16,0.00016438,2]
[366332885,1750193455779,-1063.32,0.00016438,2]
[366332886,1750193455792,-412.39515049,0.00016438,2]
[366332887,1750193455803,-308.826329,0.00016438,2]
[366332888,1750193455816,-308.826329,0.00016438,2]
[366332889,1750193455830,-308.826329,0.00016438,2]
[366332890,1750193455843,-151.0,0.00016438,2]
[366332891,1750193455856,-490.0,0.00016438,2]
[366332892,1750193455868,-308.826329,0.00016438,2]
[366332893,1750193455881,-151.0,0.00016438,2]
[366332894,1750193455896,-308.826329,0.00016438,2]
[366332895,1750193455908,-490.0,0.00016438,2]
[366332896,1750193455922,-151.0,0.00016438,2]
[366332897,1750193455936,-308.826329,0.00016438,2]
[366332898,1750193455949,-151.0,0.00016438,2]
[366332899,1750193455962,-308.826329,0.00016438,2]
[366332900,1750193455975,-151.0,0.00016438,2]
[366332901,1750193455988,-308.826329,0.00016438,2]
[366332902,1750193456001,-490.0,0.00016438,2]
[366332903,1750193456014,-151.0,0.00016438,2]
[366332904,1750193456026,-308.826329,0.00016438,2]
[366332905,1750193456039,-725.26,0.00016438,2]
[366332906,1750193456053,-151.0,0.00016438,2]
[366332907,1750193456066,-308.826322,0.00016438,2]
[366332908,1750193456079,-151.0,0.00016438,2]
[366332909,1750193456092,-490.0,0.00016438,2]
[366332910,1750193456105,-151.0,0.00016438,2]
[366332911,1750193456118,-1690.98,0.00016438,2]
[366332912,1750193456131,-151.0,0.00016438,2]
[366332913,1750193456148,-490.0,0.00016438,2]
[366332914,1750193456162,-901.88,0.00016438,2]
[366332915,1750193456175,-500.0,0.00016438,2]
[366332916,1750193456189,-151.0,0.00016438,2]
[366332917,1750193456202,-500.0,0.00016438,2]
[366332918,1750193456216,-490.0,0.00016438,2]
[366332919,1750193456229,-151.0,0.00016438,2]
[366332920,1750193456242,-500.0,0.00016438,2]
[366332921,1750193456254,-500.0,0.00016438,2]
[366332922,1750193456266,-151.0,0.00016438,2]
[366332923,1750193456279,-506.05,0.00016438,2]
[366332924,1750193456292,-500.0,0.00016438,2]
[366332925,1750193456306,-151.0,0.00016438,2]
[366332926,1750193456319,-500.0,0.00016438,2]
[366332927,1750193456332,-160.065009,0.00016438,2]
[366332928,1750193456344,-500.0,0.00016438,2]
[366332929,1750193456356,-490.0,0.00016438,2]
[366332930,1750193456369,-500.0,0.00016438,2]
[366332931,1750193456382,-490.0,0.00016438,2]
[366332932,1750193456394,-500.0,0.00016438,2]
[366332933,1750193456406,-490.0,0.00016438,2]
[366332934,1750193456419,-640.67170139,0.00016438,2]
[366332935,1750193456432,-1096.83,0.00016438,2]
[366332936,1750193456444,-490.0,0.00016438,2]
[366332937,1750193456457,-490.0,0.00016438,2]
[366332938,1750193456470,-1768.38,0.00016438,2]
[366332939,1750193456482,-1536.19,0.00016438,2]
[366332940,1750193456496,-490.0,0.00016438,2]
[366332941,1750193456508,-490.0,0.00016438,2]
[366332942,1750193456521,-897.87,0.00016438,2]
[366332943,1750193456534,-490.0,0.00016438,2]
[366332944,1750193456547,-1671.32,0.00016438,2]
[366332945,1750193456560,-490.0,0.00016438,2]
[366332946,1750193456573,-390.7578962,0.00016438,2]
[366332947,1750193456586,-151.0,0.00016438,2]
[366332948,1750193456599,-151.0,0.00016438,2]
[366332949,1750193456612,-151.0,0.00016438,2]
[366332950,1750193456625,-156.43497567,0.00016438,2]
[366332951,1750193456639,-151.0,0.00016438,2]
[366332952,1750193456651,-10000.0,0.00016438,2]
[366332953,1750193456664,-1668.56,0.00016438,2]
[366332954,1750193456678,-490.0,0.00016438,2]
[366332955,1750193456690,-151.0,0.00016438,2]
[366332956,1750193456704,-223.60522494,0.00016438,2]
[366332957,1750193456716,-150.57114516,0.00016438,2]
[366332958,1750193456734,-10000.0,0.00016438,2]
[366332959,1750193456750,-151.0,0.00016438,2]
[366332960,1750193456763,-10000.0,0.00016438,2]
[366332961,1750193456776,-151.0,0.00016438,2]
[366332962,1750193456788,-10000.0,0.00016438,2]
[366332963,1750193456801,-490.0,0.00016438,2]
[366332964,1750193456814,-280.95524179,0.00016438,2]
[366332965,1750193456826,-10000.0,0.00016438,2]
[366332966,1750193456839,-151.0,0.00016438,2]
[366332967,1750193456851,-1520.86,0.00016438,2]
[366332968,1750193456864,-10000.0,0.00016438,2]
[366332969,1750193456876,-474.60498639,0.00016438,2]
[366332970,1750193456888,-151.0,0.00016438,2]
[366332971,1750193456901,-10000.0,0.00016438,2]
[366332972,1750193456914,-151.0,0.00016438,2]
[366332973,1750193456927,-151.0,0.00016438,2]
[366332974,1750193456938,-150.0,0.00016438,2]
[366332975,1750193456950,-151.0,0.00016438,2]
[366332976,1750193456962,-10000.0,0.00016438,2]
[366332977,1750193456974,-490.0,0.00016438,2]
[366332978,1750193456986,-151.0,0.00016438,2]
[366332979,1750193457001,-10000.0,0.00016438,2]
[366332980,1750193457013,-151.0,0.00016438,2]
[366332981,1750193457026,-871.89,0.00016438,2]
[366332982,1750193457040,-10000.0,0.00016438,2]
[366332983,1750193457053,-151.0,0.00016438,2]
[366332984,1750193457066,-10000.0,0.00016438,2]
[366332985,1750193457079,-501.63136302,0.00016438,2]
[366332986,1750193457092,-151.0,0.00016438,2]
[366332987,1750193457105,-546.31,0.00016438,2]
[366332988,1750193457117,-644.43,0.00016438,2]
[366332989,1750193457129,-10000.0,0.00016438,2]
[366332990,1750193457145,-10000.0,0.00016438,2]
[366332991,1750193457157,-151.0,0.00016438,2]
[366332992,1750193457170,-10000.0,0.00016438,2]
[366332993,1750193457184,-217.921706,0.00016438,2]
[366332994,1750193457196,-490.0,0.00016438,2]
[366332995,1750193457211,-10000.0,0.00016438,2]
[366332996,1750193457224,-10000.0,0.00016438,2]
[366332997,1750193457237,-10000.0,0.00016438,2]
[366332998,1750193457252,-10000.0,0.00016438,2]
[366332999,1750193457265,-10000.0,0.00016438,2]
[366333000,1750193457277,-10000.0,0.00016438,2]
[366333001,1750193457290,-10000.0,0.00016438,2]
[366333002,1750193457304,-10000.0,0.00016438,2]
[366333003,1750193457317,-490.0,0.00016438,2]
[366333004,1750193457329,-935.66,0.00016438,2]
[366333005,1750193457342,-460.0,0.00016438,2]
[366333006,1750193457354,-490.0,0.00016438,2]
[366333007,1750193457368,-10000.0,0.00016438,2]
[366333008,1750193457380,-10000.0,0.00016438,2]
[366333009,1750193457393,-10000.0,0.00016438,2]
[366333010,1750193457405,-430.16387779,0.00016438,2]
[366333011,1750193457417,-490.0,0.00016438,2]
[366333012,1750193457429,-10000.0,0.00016438,2]
[366333013,1750193457441,-833.753854,0.00016438,2]
[366333014,1750193457453,-750.47,0.00016438,2]
[366333015,1750193457466,-490.0,0.00016438,2]
[366333016,1750193457478,-353.51361141,0.00016438,2]
[366333017,1750193457490,-701.87,0.00016438,2]
[366333018,1750193457503,-490.0,0.00016438,2]
[366333019,1750193457515,-1016.25,0.00016438,2]
[366333020,1750193457528,-1260.29,0.00016438,2]
[366333021,1750193457539,-151.0,0.00016438,2]
[366333022,1750193457551,-240.955094,0.00016438,2]
[366333023,1750193457563,-588.0,0.00016438,2]
[366333024,1750193457575,-490.0,0.00016438,2]
[366333025,1750193457587,-303.12168633,0.00016438,2]
[366333026,1750193457599,-936.01,0.00016438,2]
[366333027,1750193457611,-490.0,0.00016438,2]
[366333028,1750193457622,-490.0,0.00016438,2]
[366333029,1750193457634,-490.0,0.00016438,2]
[366333030,1750193457646,-490.0,0.00016438,2]
[366333031,1750193457657,-1013.17,0.00016438,2]
[366333032,1750193457669,-1126.05,0.00016438,2]
[366333033,1750193457681,-490.0,0.00016438,2]
[366333034,1750193457692,-490.0,0.00016438,2]
[366333035,1750193457704,-490.0,0.00016438,2]
[366333036,1750193457716,-846.09,0.00016438,2]
[366333037,1750193457728,-490.0,0.00016438,2]
[366333038,1750193457740,-498.9,0.00016438,2]
[366333039,1750193457752,-505.0,0.00016438,2]
[366333040,1750193457763,-2151.72,0.00016438,2]
[366333041,1750193457775,-490.0,0.00016438,2]
[366333042,1750193457788,-490.0,0.00016438,2]
[366333043,1750193457799,-490.0,0.00016438,2]
[366333044,1750193457812,-1811.13,0.00016438,2]
[366333045,1750193457825,-197.98467032,0.00016438,2]
[366333046,1750193457838,-500.0,0.00016438,2]
[366333047,1750193457847,-500.0,0.00016438,2]
[366333048,1750193457856,-1192.12,0.00016438,2]
[366333049,1750193457866,-168.377014,0.00016438,2]
[366333050,1750193457875,-490.0,0.00016438,2]
[366333051,1750193457886,-168.377014,0.00016438,2]
[366333052,1750193457895,-691.95,0.00016438,2]
[366333053,1750193457905,-168.377014,0.00016438,2]
[366333054,1750193457914,-490.0,0.00016438,2]
[366333055,1750193457923,-924.58,0.00016438,2]
[366333056,1750193457933,-168.377014,0.00016438,2]
[366333057,1750193457942,-686.42,0.00016438,2]
[366333058,1750193457951,-168.377014,0.00016438,2]
[366333059,1750193457961,-168.377014,0.00016438,2]
[366333060,1750193457970,-168.377014,0.00016438,2]
[366333061,1750193457980,-168.377014,0.00016438,2]
[366333062,1750193457989,-490.0,0.00016438,2]
[366333063,1750193457999,-168.377014,0.00016438,2]
[366333064,1750193458009,-1281.61,0.00016438,2]
[366333065,1750193458019,-168.377014,0.00016438,2]
[366333066,1750193458030,-490.0,0.00016438,2]
[366333067,1750193458042,-168.377014,0.00016438,2]
[366333068,1750193458052,-1097.19,0.00016438,2]
[366333069,1750193458061,-168.377014,0.00016438,2]
[366333070,1750193458071,-490.0,0.00016438,2]
[366333071,1750193458081,-168.377014,0.00016438,2]
[366333072,1750193458090,-168.377014,0.00016438,2]
[366333073,1750193458100,-168.377014,0.00016438,2]
[366333074,1750193458110,-168.377014,0.00016438,2]
[366333075,1750193458120,-168.377014,0.00016438,2]
[366333076,1750193458130,-168.377014,0.00016438,2]
[366333077,1750193458143,-168.377014,0.00016438,2]
[366333078,1750193458525,-490.0,0.00016438,2]
[366333079,1750193458727,-1003.64,0.00016438,2]
[366333080,1750193458756,-168.37701,0.00016438,2]
[366333081,1750193458781,-490.0,0.00016438,2]
[366333082,1750193458791,-490.0,0.00016438,2]
[366333083,1750193458801,-490.0,0.00016438,2]
[366333084,1750193458810,-563.61,0.00016438,2]
[366333085,1750193458820,-490.0,0.00016438,2]
[366333086,1750193458829,-490.0,0.00016438,2]
[366333087,1750193458839,-490.0,0.00016438,2]
[366333088,1750193458848,-490.0,0.00016438,2]
[366333089,1750193458857,-2092.71,0.00016438,2]
[366333090,1750193458867,-490.0,0.00016438,2]
[366333091,1750193458876,-436.84976066,0.00016438,2]
[366333092,1750193458886,-490.0,0.00016438,2]
[366333093,1750193458895,-3029.14,0.00016438,2]
[366333094,1750193458904,-533.58470695,0.00016438,2]
[366333095,1750193458913,-553.92,0.00016438,2]
[366333096,1750193458923,-490.0,0.00016438,2]
[366333097,1750193458932,-490.0,0.00016438,2]
[366333098,1750193458941,-490.0,0.00016438,2]
[366333099,1750193458951,-159.6963461,0.00016438,2]
[366333100,1750193458960,-554.31,0.00016438,2]
[366333101,1750193458970,-683.75,0.00016438,2]
[366333102,1750193458979,-490.0,0.00016438,2]
[366333103,1750193458989,-490.0,0.00016438,2]
[366333104,1750193459000,-460.0,0.00016438,2]
[366333105,1750193459010,-460.0,0.00016438,2]
[366333106,1750193459019,-490.0,0.00016438,2]
[366333107,1750193459029,-490.0,0.00016438,2]
[366333108,1750193459038,-1389.36,0.00016438,2]
[366333109,1750193459047,-490.0,0.00016438,2]
[366333110,1750193459056,-490.0,0.00016438,2]
[366333111,1750193459066,-490.0,0.00016438,2]
[366333112,1750193459075,-490.0,0.00016438,2]
[366333113,1750193459085,-1306.96,0.00016438,2]
[366333114,1750193459094,-1120.54,0.00016438,2]
[366333115,1750193459104,-387.76500153,0.00016438,2]
[366333116,1750193459113,-490.0,0.00016438,2]
[366333117,1750193459122,-150.0,0.00016438,2]
[366333118,1750193459131,-577.71,0.00016438,2]
[366333119,1750193459146,-490.0,0.00016438,2]
[366333120,1750193459156,-490.0,0.00016438,2]
[366333121,1750193459166,-490.0,0.00016438,2]
[366333122,1750193459175,-490.0,0.00016438,2]
[366333123,1750193459186,-500.0,0.00016438,2]
[366333124,1750193459195,-1702.0,0.00016438,2]
[366333125,1750193459204,-490.0,0.00016438,2]
[366333126,1750193459214,-490.0,0.00016438,2]
[366333127,1750193459224,-485.82997766,0.00016438,2]
[366333128,1750193459234,-490.0,0.00016438,2]
[366333129,1750193459244,-150.0,0.00016438,2]
[366333130,1750193459254,-490.0,0.00016438,2]
[366333131,1750193459263,-720.94,0.00016438,2]
[366333132,1750193459273,-490.0,0.00016438,2]
[366333133,1750193459283,-583.99,0.00016438,2]
[366333134,1750193459292,-490.0,0.00016438,2]
[366333135,1750193459302,-886.76,0.00016438,2]
[366333136,1750193459311,-720.66,0.00016438,2]
[366333137,1750193459321,-916.38,0.00016438,2]
[366333138,1750193459330,-490.0,0.00016438,2]
[366333139,1750193459340,-421.57091053,0.00016438,2]
[366333140,1750193459349,-490.0,0.00016438,2]
[366333141,1750193459359,-490.0,0.00016438,2]
[366333142,1750193459368,-490.0,0.00016438,2]
[366333143,1750193459378,-490.0,0.00016438,2]
[366333144,1750193459388,-490.0,0.00016438,2]
[366333145,1750193459399,-2404.43,0.00016438,2]
[366333146,1750193459409,-490.0,0.00016438,2]
[366333147,1750193459419,-490.0,0.00016438,2]
[366333148,1750193459428,-490.0,0.00016438,2]
[366333149,1750193459438,-490.0,0.00016438,2]
[366333150,1750193459448,-490.0,0.00016438,2]
[366333151,1750193459457,-490.0,0.00016438,2]
[366333152,1750193459467,-490.0,0.00016438,2]
[366333153,1750193459477,-420.0,0.00016438,2]
[366333154,1750193459487,-490.0,0.00016438,2]
[366333155,1750193459497,-2094.3,0.00016438,2]
[366333156,1750193459507,-490.0,0.00016438,2]
[366333157,1750193459516,-421.55809701,0.00016438,2]
[366333158,1750193459526,-1638.35,0.00016438,2]
[366333159,1750193459535,-490.0,0.00016438,2]
[366333160,1750193459544,-1206.83,0.00016438,2]
[366333161,1750193459554,-694.01,0.00016438,2]
[366333162,1750193459563,-490.0,0.00016438,2]
[366333163,1750193459572,-490.0,0.00016438,2]
[366333164,1750193459582,-267.38879712,0.00016438,2]
[366333165,1750193459591,-490.0,0.00016438,2]
[366333166,1750193459601,-490.0,0.00016438,2]
[366333167,1750193459610,-490.0,0.00016438,2]
[366333168,1750193459619,-500.0,0.00016438,2]
[366333169,1750193459629,-490.0,0.00016438,2]
[366333170,1750193459638,-500.0,0.00016438,2]
[366333171,1750193459647,-500.0,0.00016438,2]
[366333172,1750193459657,-500.0,0.00016438,2]
[366333173,1750193459666,-1268.45,0.00016438,2]
[366333174,1750193459676,-500.0,0.00016438,2]
[366333175,1750193459685,-604.028725,0.00016438,2]
[366333176,1750193459694,-490.0,0.00016438,2]
[366333177,1750193459704,-490.0,0.00016438,2]
[366333178,1750193459713,-490.0,0.00016438,2]
[366333179,1750193459723,-490.0,0.00016438,2]
[366333180,1750193459732,-501.35379227,0.00016438,2]
[366333181,1750193459742,-592.84670006,0.00016438,2]
[366333182,1750193459751,-490.0,0.00016438,2]
[366333183,1750193459762,-490.0,0.00016438,2]
[366333184,1750193459771,-355.48407742,0.00016438,2]
[366333185,1750193459781,-490.0,0.00016438,2]
[366333186,1750193459790,-490.0,0.00016438,2]
[366333187,1750193459799,-527.93,0.00016438,2]
[366333188,1750193459809,-490.0,0.00016438,2]
[366333189,1750193459818,-490.0,0.00016438,2]
[366333190,1750193459827,-490.0,0.00016438,2]
[366333191,1750193459837,-681.54,0.00016438,2]
[366333192,1750193459846,-490.15,0.00016438,2]
[366333193,1750193459857,-490.0,0.00016438,2]
[366333194,1750193459867,-566.34,0.00016438,2]
[366333195,1750193459876,-178.87025188,0.00016438,2]
[366333196,1750193459886,-493.9,0.00016438,2]
[366333197,1750193459895,-1744.24,0.00016438,2]
[366333198,1750193459904,-619.77,0.00016438,2]
[366333199,1750193459917,-490.0,0.00016438,2]
[366333200,1750193459926,-388.401725,0.00016438,2]
[366333201,1750193459936,-490.0,0.00016438,2]
[366333202,1750193459946,-490.0,0.00016438,2]
[366333203,1750193459955,-388.401725,0.00016438,2]
[366333204,1750193459965,-388.401725,0.00016438,2]
[366333205,1750193459975,-388.401725,0.00016438,2]
[366333206,1750193459984,-490.0,0.00016438,2]
[366333207,1750193459995,-388.401725,0.00016438,2]
[366333208,1750193460005,-388.401725,0.00016438,2]
[366333209,1750193460015,-490.0,0.00016438,2]
[366333210,1750193460024,-388.401725,0.00016438,2]
[366333211,1750193460034,-321.84012621,0.00016438,2]
[366333212,1750193460044,-490.0,0.00016438,2]
[366333213,1750193460054,-388.401725,0.00016438,2]
[366333214,1750193460063,-388.401725,0.00016438,2]
[366333215,1750193460073,-490.0,0.00016438,2]